[Event "Titled Tuesday Blitz April 19 Early 2022"]
[White "Todorovic, Bojan"]
[Black "Kim, Sergey"]
[WhiteFideId "917087"]
[BlackFideId "13700570"]
[WhiteElo "2266"]
[BlackElo "2558"]
[Result "0-1"]
[Round "07"]
[TimeControl "180+1"]
[Date "2022.04.19"]
[WhiteClock "0:00:07"]
[BlackClock "0:01:28"]

1. d4 {[%clk 0:02:58]}  Nf6 {[%clk 0:02:59]} 2. Bg5 {[%clk 0:02:56]}  g6 {[%clk 0:02:59]} 3. Bxf6 {[%clk 0:02:56]}  exf6 {[%clk 0:03:00]} 4. e3 {[%clk 0:02:55]}  h5 {[%clk 0:03:01]} 5. Bd3 {[%clk 0:02:53]}  d6 {[%clk 0:03:01]} 6. Ne2 {[%clk 0:02:51]}  h4 {[%clk 0:03:01]} 7. h3 {[%clk 0:02:50]}  Bh6 {[%clk 0:03:01]} 8. Nd2 {[%clk 0:02:48]}  f5 {[%clk 0:03:01]} 9. Nf3 {[%clk 0:02:47]}  Nd7 {[%clk 0:03:01]} 10. c3 {[%clk 0:02:44]}  c6 {[%clk 0:03:01]} 11. b4 {[%clk 0:02:41]}  a6 {[%clk 0:03:01]} 12. a4 {[%clk 0:02:38]}  Bg7 {[%clk 0:02:59]} 13. O-O {[%clk 0:02:36]}  Qe7 {[%clk 0:02:58]} 14. b5 {[%clk 0:02:31]}  c5 {[%clk 0:02:57]} 15. Bc4 {[%clk 0:02:28]}  Nf6 {[%clk 0:02:45]} 16. Nf4 {[%clk 0:02:27]}  Ne4 {[%clk 0:02:38]} 17. Nd5 {[%clk 0:02:13]}  Qd8 {[%clk 0:02:38]} 18. bxa6 {[%clk 0:02:03]}  bxa6 {[%clk 0:02:37]} 19. Nd2 {[%clk 0:01:50]}  Nxd2 {[%clk 0:02:28]} 20. Qxd2 {[%clk 0:01:49]}  O-O {[%clk 0:02:29]} 21. Rab1 {[%clk 0:01:45]}  Bd7 {[%clk 0:02:25]} 22. Nb6 {[%clk 0:01:37]}  Ra7 {[%clk 0:02:25]} 23. a5 {[%clk 0:01:30]}  Bc6 {[%clk 0:02:23]} 24. Qa2 {[%clk 0:00:55]}  Qg5 {[%clk 0:02:18]} 25. Bd5 {[%clk 0:00:55]}  Bb5 {[%clk 0:02:16]} 26. Bc4 {[%clk 0:00:44]}  Be8 {[%clk 0:02:11]} 27. Qe2 {[%clk 0:00:31]}  f4 {[%clk 0:02:10]} 28. Bxa6 {[%clk 0:00:27]}  f3 {[%clk 0:02:09]} 29. Qxf3 {[%clk 0:00:23]}  Rxa6 {[%clk 0:02:09]} 30. Ra1 {[%clk 0:00:20]}  Qd8 {[%clk 0:02:01]} 31. Qb7 {[%clk 0:00:19]}  Rxb6 {[%clk 0:01:53]} 32. axb6 {[%clk 0:00:19]}  Bb5 {[%clk 0:01:51]} 33. Rfb1 {[%clk 0:00:16]}  Bd3 {[%clk 0:01:51]} 34. Rb2 {[%clk 0:00:15]}  Re8 {[%clk 0:01:46]} 35. Qc6 {[%clk 0:00:15]}  Be4 {[%clk 0:01:45]} 36. d5 {[%clk 0:00:15]}  Qb8 {[%clk 0:01:38]} 37. b7 {[%clk 0:00:15]}  Bxc3 {[%clk 0:01:38]} 38. Ra8 {[%clk 0:00:14]}  Bxb2 {[%clk 0:01:35]} 39. Rxb8 {[%clk 0:00:14]}  Rxb8 {[%clk 0:01:35]} 40. Qc7 {[%clk 0:00:14]}  Rxb7 {[%clk 0:01:34]} 41. Qxb7 {[%clk 0:00:15]}  Be5 {[%clk 0:01:31]} 42. f4 {[%clk 0:00:15]}  Bf6 {[%clk 0:01:29]} 43. Qc6 {[%clk 0:00:14]}  Kg7 {[%clk 0:01:27]} 44. Qxd6 {[%clk 0:00:13]}  c4 {[%clk 0:01:28]} 45. Qc6 {[%clk 0:00:12]}  c3 {[%clk 0:01:28]} 46. Kf2 {[%clk 0:00:09]}  c2 {[%clk 0:01:28]} 47. Ke2 {[%clk 0:00:08]}  Bb2 {[%clk 0:01:28]} 48. Kd2 {[%clk 0:00:07]}  c1=Q+ {[%clk 0:01:28]} 0-1


[Site "https://www.chess.com"]

[Event "Titled Tuesday Blitz April 19 Early 2022"]
[White "Tristan, Leonardo"]
[Black "Dang, Hoang Son"]
[WhiteFideId "113816"]
[BlackFideId "12402435"]
[WhiteElo "2404"]
[BlackElo "2252"]
[Result "0-1"]
[Round "07"]
[TimeControl "180+1"]
[Date "2022.04.19"]
[WhiteClock "0:00:01"]
[BlackClock "0:00:35"]

1. d4 {[%clk 0:03:00]}  Nf6 {[%clk 0:02:59]} 2. Nf3 {[%clk 0:03:01]}  g6 {[%clk 0:02:58]} 3. Bf4 {[%clk 0:03:01]}  Bg7 {[%clk 0:02:57]} 4. e3 {[%clk 0:03:02]}  O-O {[%clk 0:02:58]} 5. Be2 {[%clk 0:03:02]}  d6 {[%clk 0:02:58]} 6. O-O {[%clk 0:03:03]}  c5 {[%clk 0:02:57]} 7. c3 {[%clk 0:03:02]}  Nh5 {[%clk 0:02:53]} 8. Bg5 {[%clk 0:03:02]}  h6 {[%clk 0:02:53]} 9. Bh4 {[%clk 0:03:03]}  g5 {[%clk 0:02:53]} 10. Nfd2 {[%clk 0:03:03]}  Nf4 {[%clk 0:02:53]} 11. exf4 {[%clk 0:03:02]}  gxh4 {[%clk 0:02:54]} 12. d5 {[%clk 0:03:02]}  e6 {[%clk 0:02:52]} 13. Bf3 {[%clk 0:02:53]}  exd5 {[%clk 0:02:44]} 14. Bxd5 {[%clk 0:02:52]}  Nc6 {[%clk 0:02:44]} 15. Nc4 {[%clk 0:02:50]}  Be6 {[%clk 0:02:25]} 16. Nba3 {[%clk 0:02:48]}  a6 {[%clk 0:02:13]} 17. Re1 {[%clk 0:02:10]}  b5 {[%clk 0:02:01]} 18. Bxc6 {[%clk 0:01:55]}  bxc4 {[%clk 0:02:01]} 19. Bxa8 {[%clk 0:01:55]}  Qxa8 {[%clk 0:02:02]} 20. Rxe6 {[%clk 0:01:39]}  fxe6 {[%clk 0:02:01]} 21. Qxd6 {[%clk 0:01:39]}  Qd5 {[%clk 0:01:56]} 22. Rd1 {[%clk 0:01:33]}  Qe4 {[%clk 0:01:41]} 23. Qxc5 {[%clk 0:01:07]}  h3 {[%clk 0:01:39]} 24. gxh3 {[%clk 0:01:00]}  Rxf4 {[%clk 0:01:33]} 25. Qe3 {[%clk 0:00:56]}  Qf5 {[%clk 0:01:27]} 26. Rd8+ {[%clk 0:00:44]}  Kh7 {[%clk 0:01:26]} 27. Rd7 {[%clk 0:00:40]}  Re4 {[%clk 0:01:14]} 28. Qd2 {[%clk 0:00:20]}  Qxh3 {[%clk 0:01:04]} 29. Rxg7+ {[%clk 0:00:13]}  Kxg7 {[%clk 0:01:03]} 30. Qd7+ {[%clk 0:00:13]}  Kg6 {[%clk 0:01:00]} 31. Qe8+ {[%clk 0:00:13]}  Kg5 {[%clk 0:00:57]} 32. Qe7+ {[%clk 0:00:11]}  Kg4 {[%clk 0:00:38]} 33. Qg7+ {[%clk 0:00:09]}  Kf3 {[%clk 0:00:37]} 34. Qf6+ {[%clk 0:00:05]}  Ke2 {[%clk 0:00:36]} 35. f3 {[%clk 0:00:01]}  Qf1# {[%clk 0:00:35]} 0-1


[Site "https://www.chess.com"]

[Event "Titled Tuesday Blitz April 19 Early 2022"]
[White "Tsyhanchuk, Stanislav"]
[Black "Biletskiy, Danylo"]
[WhiteFideId "13505130"]
[BlackFideId "14155419"]
[WhiteElo "2078"]
[BlackElo "2087"]
[Result "1-0"]
[Round "07"]
[TimeControl "180+1"]
[Date "2022.04.19"]
[WhiteClock "0:00:10"]
[BlackClock "0:00:09"]

1. d4 {[%clk 0:03:00]}  Nf6 {[%clk 0:02:58]} 2. c4 {[%clk 0:03:00]}  e6 {[%clk 0:02:47]} 3. Nc3 {[%clk 0:03:00]}  Bb4 {[%clk 0:02:46]} 4. Nf3 {[%clk 0:03:00]}  d5 {[%clk 0:02:46]} 5. cxd5 {[%clk 0:02:59]}  exd5 {[%clk 0:02:46]} 6. Bg5 {[%clk 0:03:00]}  O-O {[%clk 0:02:45]} 7. e3 {[%clk 0:03:00]}  Bf5 {[%clk 0:02:46]} 8. Qb3 {[%clk 0:02:57]}  Bxc3+ {[%clk 0:02:25]} 9. bxc3 {[%clk 0:02:58]}  b6 {[%clk 0:02:02]} 10. Bxf6 {[%clk 0:02:54]}  gxf6 {[%clk 0:02:03]} 11. c4 {[%clk 0:02:51]}  Be4 {[%clk 0:01:58]} 12. Nd2 {[%clk 0:02:49]}  c5 {[%clk 0:01:50]} 13. Bd3 {[%clk 0:02:23]}  dxc4 {[%clk 0:01:39]} 14. Nxc4 {[%clk 0:02:18]}  Bxd3 {[%clk 0:01:36]} 15. Qxd3 {[%clk 0:02:19]}  cxd4 {[%clk 0:01:36]} 16. Qe4 {[%clk 0:02:06]}  Na6 {[%clk 0:01:24]} 17. O-O {[%clk 0:01:53]}  Nc5 {[%clk 0:01:03]} 18. Qg4+ {[%clk 0:01:47]}  Kh8 {[%clk 0:01:03]} 19. exd4 {[%clk 0:01:47]}  Ne6 {[%clk 0:01:00]} 20. Rad1 {[%clk 0:01:42]}  Qd5 {[%clk 0:01:00]} 21. Ne3 {[%clk 0:01:41]}  Qg5 {[%clk 0:01:00]} 22. Qf3 {[%clk 0:01:36]}  Rad8 {[%clk 0:00:59]} 23. d5 {[%clk 0:01:36]}  Nf4 {[%clk 0:00:55]} 24. h4 {[%clk 0:01:22]}  Qxh4 {[%clk 0:00:38]} 25. g3 {[%clk 0:01:21]}  Rg8 {[%clk 0:00:38]} 26. Nf5 {[%clk 0:00:50]}  Qg5 {[%clk 0:00:34]} 27. Ne7 {[%clk 0:00:42]}  Rg7 {[%clk 0:00:33]} 28. d6 {[%clk 0:00:30]}  f5 {[%clk 0:00:18]} 29. Nc6 {[%clk 0:00:25]}  Rd7 {[%clk 0:00:18]} 30. Ne5 {[%clk 0:00:21]}  Rd8 {[%clk 0:00:15]} 31. d7 {[%clk 0:00:19]}  Ne6 {[%clk 0:00:15]} 32. Nc6 {[%clk 0:00:15]}  Rdg8 {[%clk 0:00:16]} 33. Rfe1 {[%clk 0:00:12]}  Nd8 {[%clk 0:00:12]} 34. Re8 {[%clk 0:00:11]}  Nxc6 {[%clk 0:00:08]} 35. Qxc6 {[%clk 0:00:11]}  f4 {[%clk 0:00:09]} 36. d8=Q {[%clk 0:00:10]}  Qg4 {[%clk 0:00:09]} 37. Rxg8+ {[%clk 0:00:10]}  Rxg8 {[%clk 0:00:10]} 38. Qc3+ {[%clk 0:00:09]}  Qg7 {[%clk 0:00:08]} 39. Qxg7+ {[%clk 0:00:09]}  Kxg7 {[%clk 0:00:08]} 40. Qg5+ {[%clk 0:00:08]}  Kh8 {[%clk 0:00:09]} 41. Qf6+ {[%clk 0:00:09]}  Rg7 {[%clk 0:00:09]} 42. Rd8# {[%clk 0:00:10]} 1-0


[Site "https://www.chess.com"]

[Event "Titled Tuesday Blitz April 19 Early 2022"]
[White "Warchol, Kamil"]
[Black "Zhurikhin, Alexander"]
[WhiteFideId "21858241"]
[BlackFideId "4139569"]
[WhiteElo "1910"]
[BlackElo "2204"]
[Result "0-1"]
[Round "07"]
[TimeControl "180+1"]
[Date "2022.04.19"]
[WhiteClock "0:00:34"]
[BlackClock "0:00:43"]

1. e4 {[%clk 0:03:00]}  c5 {[%clk 0:02:59]} 2. Nf3 {[%clk 0:02:59]}  d6 {[%clk 0:03:00]} 3. d4 {[%clk 0:02:59]}  cxd4 {[%clk 0:03:00]} 4. Nxd4 {[%clk 0:02:59]}  Nf6 {[%clk 0:03:01]} 5. Nc3 {[%clk 0:02:59]}  a6 {[%clk 0:03:01]} 6. f4 {[%clk 0:02:59]}  e5 {[%clk 0:03:01]} 7. Nf3 {[%clk 0:02:59]}  Nbd7 {[%clk 0:03:01]} 8. a4 {[%clk 0:02:58]}  Qc7 {[%clk 0:03:00]} 9. Bd3 {[%clk 0:02:57]}  Be7 {[%clk 0:03:00]} 10. O-O {[%clk 0:02:55]}  O-O {[%clk 0:03:01]} 11. Qe1 {[%clk 0:02:56]}  Nc5 {[%clk 0:03:00]} 12. f5 {[%clk 0:02:44]}  b6 {[%clk 0:02:42]} 13. Bg5 {[%clk 0:02:41]}  Bb7 {[%clk 0:02:41]} 14. Rc1 {[%clk 0:02:32]}  Rfe8 {[%clk 0:02:37]} 15. b4 {[%clk 0:02:31]}  Ncd7 {[%clk 0:02:32]} 16. Nd1 {[%clk 0:02:13]}  d5 {[%clk 0:02:26]} 17. Nf2 {[%clk 0:02:08]}  dxe4 {[%clk 0:02:16]} 18. Nxe4 {[%clk 0:02:09]}  Bxe4 {[%clk 0:01:57]} 19. Bxe4 {[%clk 0:02:04]}  Nxe4 {[%clk 0:01:57]} 20. Qxe4 {[%clk 0:02:02]}  Bxg5 {[%clk 0:01:54]} 21. Nxg5 {[%clk 0:02:01]}  Nf6 {[%clk 0:01:54]} 22. Qe2 {[%clk 0:01:57]}  e4 {[%clk 0:01:51]} 23. c4 {[%clk 0:01:53]}  a5 {[%clk 0:01:50]} 24. Qb2 {[%clk 0:01:41]}  axb4 {[%clk 0:01:26]} 25. Qxb4 {[%clk 0:01:42]}  Ra5 {[%clk 0:01:25]} 26. Nh3 {[%clk 0:01:27]}  h6 {[%clk 0:01:19]} 27. Rc3 {[%clk 0:01:10]}  e3 {[%clk 0:01:15]} 28. Re1 {[%clk 0:01:04]}  Ng4 {[%clk 0:01:01]} 29. g3 {[%clk 0:01:04]}  Rxf5 {[%clk 0:00:59]} 30. c5 {[%clk 0:00:55]}  Nf2 {[%clk 0:00:58]} 31. Nf4 {[%clk 0:00:35]}  Rxf4 {[%clk 0:00:43]} 32. Qxf4 {[%clk 0:00:34]}  Nh3+ {[%clk 0:00:43]} 0-1


[Site "https://www.chess.com"]

[Event "Titled Tuesday Blitz April 19 Early 2022"]
[White "Wieczorek, Oskar"]
[Black "Fromm, Marius"]
[WhiteFideId "1133950"]
[BlackFideId "12993190"]
[WhiteElo "2319"]
[BlackElo "2524"]
[Result "0-1"]
[Round "07"]
[TimeControl "180+1"]
[Date "2022.04.19"]
[WhiteClock "0:00:09"]
[BlackClock "0:00:02"]

1. e4 {[%clk 0:03:00]}  c5 {[%clk 0:03:00]} 2. Nf3 {[%clk 0:03:01]}  d6 {[%clk 0:03:00]} 3. d4 {[%clk 0:03:01]}  cxd4 {[%clk 0:03:01]} 4. Nxd4 {[%clk 0:03:02]}  Nf6 {[%clk 0:03:01]} 5. Nc3 {[%clk 0:03:02]}  a6 {[%clk 0:03:02]} 6. h4 {[%clk 0:03:03]}  e5 {[%clk 0:02:52]} 7. Nb3 {[%clk 0:03:02]}  h5 {[%clk 0:02:34]} 8. Bg5 {[%clk 0:03:02]}  Be6 {[%clk 0:02:33]} 9. Bxf6 {[%clk 0:02:50]}  Qxf6 {[%clk 0:02:31]} 10. Nd5 {[%clk 0:02:48]}  Qd8 {[%clk 0:02:31]} 11. Be2 {[%clk 0:02:46]}  g6 {[%clk 0:02:25]} 12. Qd3 {[%clk 0:02:46]}  Nd7 {[%clk 0:02:19]} 13. O-O-O {[%clk 0:02:45]}  Rc8 {[%clk 0:02:18]} 14. Kb1 {[%clk 0:02:46]}  Nc5 {[%clk 0:02:16]} 15. Nxc5 {[%clk 0:02:45]}  Rxc5 {[%clk 0:02:17]} 16. Qb3 {[%clk 0:02:30]}  b5 {[%clk 0:02:13]} 17. g3 {[%clk 0:02:14]}  Bg7 {[%clk 0:01:55]} 18. f4 {[%clk 0:02:14]}  exf4 {[%clk 0:01:48]} 19. gxf4 {[%clk 0:02:13]}  O-O {[%clk 0:01:46]} 20. f5 {[%clk 0:02:00]}  Bxd5 {[%clk 0:01:45]} 21. Rxd5 {[%clk 0:01:56]}  Kh7 {[%clk 0:01:44]} 22. Rf1 {[%clk 0:01:12]}  Rxd5 {[%clk 0:01:37]} 23. Qxd5 {[%clk 0:01:11]}  Qxh4 {[%clk 0:01:31]} 24. e5 {[%clk 0:00:43]}  dxe5 {[%clk 0:01:19]} 25. Bd3 {[%clk 0:00:42]}  e4 {[%clk 0:01:11]} 26. Bxe4 {[%clk 0:00:39]}  Kh6 {[%clk 0:00:24]} 27. Rg1 {[%clk 0:00:16]}  Qf6 {[%clk 0:00:24]} 28. Qd2+ {[%clk 0:00:15]}  g5 {[%clk 0:00:24]} 29. c3 {[%clk 0:00:14]}  b4 {[%clk 0:00:23]} 30. Rh1 {[%clk 0:00:14]}  bxc3 {[%clk 0:00:11]} 31. Bf3 {[%clk 0:00:10]}  Qxf5+ {[%clk 0:00:03]} 32. Qc2 {[%clk 0:00:07]}  Qxc2+ {[%clk 0:00:03]} 33. Kxc2 {[%clk 0:00:08]}  h4 {[%clk 0:00:02]} 34. bxc3 {[%clk 0:00:09]}  Rc8 {[%clk 0:00:02]} 0-1


[Site "https://www.chess.com"]

[Event "Titled Tuesday Blitz April 19 Early 2022"]
[White "Yurovskykh, Oleksandr"]
[Black "Lach, Aleksandra"]
[WhiteFideId "14134020"]
[BlackFideId "1134299"]
[WhiteElo "2292"]
[BlackElo "2172"]
[Result "1-0"]
[Round "07"]
[TimeControl "180+1"]
[Date "2022.04.19"]
[WhiteClock "0:00:15"]
[BlackClock "0:00:02"]

1. d4 {[%clk 0:02:45]}  f5 {[%clk 0:02:59]} 2. Nc3 {[%clk 0:02:45]}  Nf6 {[%clk 0:02:59]} 3. Bg5 {[%clk 0:02:45]}  d5 {[%clk 0:02:59]} 4. e3 {[%clk 0:02:45]}  e6 {[%clk 0:02:59]} 5. Nf3 {[%clk 0:02:45]}  Be7 {[%clk 0:02:59]} 6. Bd3 {[%clk 0:02:42]}  O-O {[%clk 0:02:59]} 7. O-O {[%clk 0:02:41]}  Ne4 {[%clk 0:02:59]} 8. Bxe7 {[%clk 0:02:40]}  Qxe7 {[%clk 0:03:00]} 9. Ne2 {[%clk 0:02:40]}  Nd7 {[%clk 0:02:54]} 10. c4 {[%clk 0:02:40]}  c6 {[%clk 0:02:53]} 11. Qc2 {[%clk 0:02:35]}  Kh8 {[%clk 0:02:44]} 12. Rab1 {[%clk 0:02:31]}  e5 {[%clk 0:02:35]} 13. cxd5 {[%clk 0:02:30]}  cxd5 {[%clk 0:02:34]} 14. dxe5 {[%clk 0:02:26]}  Nxe5 {[%clk 0:02:34]} 15. Nxe5 {[%clk 0:02:25]}  Qxe5 {[%clk 0:02:35]} 16. f4 {[%clk 0:02:21]}  Qe7 {[%clk 0:02:32]} 17. Bxe4 {[%clk 0:02:20]}  dxe4 {[%clk 0:02:26]} 18. Nd4 {[%clk 0:02:19]}  Be6 {[%clk 0:02:26]} 19. b3 {[%clk 0:02:12]}  Rac8 {[%clk 0:02:24]} 20. Qb2 {[%clk 0:02:13]}  Rf6 {[%clk 0:01:59]} 21. Rbc1 {[%clk 0:02:11]}  Rd8 {[%clk 0:01:54]} 22. Rc3 {[%clk 0:02:08]}  Rg6 {[%clk 0:01:40]} 23. Qf2 {[%clk 0:01:57]}  a5 {[%clk 0:01:16]} 24. Rfc1 {[%clk 0:01:56]}  a4 {[%clk 0:01:11]} 25. bxa4 {[%clk 0:01:52]}  Bd7 {[%clk 0:01:01]} 26. Rc7 {[%clk 0:01:50]}  Qe8 {[%clk 0:01:00]} 27. a5 {[%clk 0:01:41]}  Ra8 {[%clk 0:00:57]} 28. Qe1 {[%clk 0:01:34]}  Rga6 {[%clk 0:00:54]} 29. R1c5 {[%clk 0:01:30]}  b6 {[%clk 0:00:48]} 30. Rd5 {[%clk 0:01:17]}  Bc8 {[%clk 0:00:38]} 31. Re5 {[%clk 0:01:15]}  Qg8 {[%clk 0:00:27]} 32. Qc3 {[%clk 0:00:34]}  bxa5 {[%clk 0:00:26]} 33. Ree7 {[%clk 0:00:32]}  Rg6 {[%clk 0:00:25]} 34. Nc6 {[%clk 0:00:27]}  Be6 {[%clk 0:00:22]} 35. Ne5 {[%clk 0:00:26]}  Rf6 {[%clk 0:00:13]} 36. h3 {[%clk 0:00:17]}  Rd8 {[%clk 0:00:13]} 37. Kh2 {[%clk 0:00:17]}  h6 {[%clk 0:00:12]} 38. Qxa5 {[%clk 0:00:16]}  Rd1 {[%clk 0:00:09]} 39. Qa7 {[%clk 0:00:16]}  Rf8 {[%clk 0:00:02]} 40. Rxg7 {[%clk 0:00:15]} 1-0


[Site "https://www.chess.com"]

[Event "Titled Tuesday Blitz April 19 Early 2022"]
[White "Zanette, Edgard Vinicius"]
[Black "Aaditya Dhingra"]
[WhiteFideId "2109263"]
[BlackFideId "25678191"]
[WhiteElo "2182"]
[BlackElo "1849"]
[Result "0-1"]
[Round "07"]
[TimeControl "180+1"]
[Date "2022.04.19"]
[WhiteClock "0:00:12"]
[BlackClock "0:00:22"]

1. e4 {[%clk 0:03:00]}  c5 {[%clk 0:02:57]} 2. Nc3 {[%clk 0:03:00]}  Nc6 {[%clk 0:02:55]} 3. g3 {[%clk 0:02:59]}  g6 {[%clk 0:02:54]} 4. Bg2 {[%clk 0:03:00]}  Bg7 {[%clk 0:02:54]} 5. Nge2 {[%clk 0:03:00]}  e6 {[%clk 0:02:52]} 6. d3 {[%clk 0:03:00]}  Nge7 {[%clk 0:02:52]} 7. Be3 {[%clk 0:03:00]}  d6 {[%clk 0:02:48]} 8. d4 {[%clk 0:02:59]}  cxd4 {[%clk 0:02:48]} 9. Nxd4 {[%clk 0:02:59]}  a6 {[%clk 0:02:47]} 10. Qd2 {[%clk 0:02:53]}  O-O {[%clk 0:02:46]} 11. Rd1 {[%clk 0:02:48]}  Qa5 {[%clk 0:02:07]} 12. Nb3 {[%clk 0:02:20]}  Qh5 {[%clk 0:02:06]} 13. O-O {[%clk 0:01:58]}  Ne5 {[%clk 0:01:47]} 14. Qxd6 {[%clk 0:01:31]}  Ng4 {[%clk 0:01:45]} 15. h4 {[%clk 0:01:18]}  Nxe3 {[%clk 0:01:40]} 16. fxe3 {[%clk 0:01:16]}  Nc6 {[%clk 0:01:39]} 17. Bf3 {[%clk 0:01:11]}  Qe5 {[%clk 0:01:38]} 18. Qxe5 {[%clk 0:01:08]}  Nxe5 {[%clk 0:01:32]} 19. Be2 {[%clk 0:01:08]}  b6 {[%clk 0:01:29]} 20. Rd6 {[%clk 0:01:04]}  Rb8 {[%clk 0:01:27]} 21. Rfd1 {[%clk 0:00:57]}  Re8 {[%clk 0:01:23]} 22. Na4 {[%clk 0:00:50]}  b5 {[%clk 0:01:21]} 23. Nac5 {[%clk 0:00:47]}  Ra8 {[%clk 0:01:17]} 24. Rd8 {[%clk 0:00:43]}  Kf8 {[%clk 0:01:15]} 25. Rxe8+ {[%clk 0:00:32]}  Kxe8 {[%clk 0:01:15]} 26. Na5 {[%clk 0:00:27]}  Bf8 {[%clk 0:00:59]} 27. Nab7 {[%clk 0:00:27]}  Bxb7 {[%clk 0:00:56]} 28. Nxb7 {[%clk 0:00:27]}  Rb8 {[%clk 0:00:50]} 29. Nd6+ {[%clk 0:00:24]}  Ke7 {[%clk 0:00:47]} 30. b3 {[%clk 0:00:16]}  Bh6 {[%clk 0:00:42]} 31. Kf2 {[%clk 0:00:16]}  Rd8 {[%clk 0:00:30]} 32. Nb7 {[%clk 0:00:14]}  Rc8 {[%clk 0:00:25]} 33. Rd2 {[%clk 0:00:12]}  Rc7 {[%clk 0:00:24]} 34. Na5 {[%clk 0:00:12]}  Rc3 {[%clk 0:00:22]} 0-1


[Site "https://www.chess.com"]

[Event "Titled Tuesday Blitz April 19 Early 2022"]
[White "Zemerov, Vladimir"]
[Black "Derraugh, Geordie"]
[WhiteFideId "4111583"]
[BlackFideId "2603950"]
[WhiteElo "2277"]
[BlackElo "2116"]
[Result "0-1"]
[Round "07"]
[TimeControl "180+1"]
[Date "2022.04.19"]
[WhiteClock "0:00:35"]
[BlackClock "0:01:20"]

1. d4 {[%clk 0:02:56]}  Nf6 {[%clk 0:02:59]} 2. c4 {[%clk 0:02:56]}  g6 {[%clk 0:02:58]} 3. Nc3 {[%clk 0:02:55]}  d5 {[%clk 0:02:59]} 4. Nf3 {[%clk 0:02:54]}  Bg7 {[%clk 0:02:58]} 5. e3 {[%clk 0:02:54]}  O-O {[%clk 0:02:58]} 6. Qb3 {[%clk 0:02:54]}  dxc4 {[%clk 0:02:57]} 7. Bxc4 {[%clk 0:02:53]}  Nc6 {[%clk 0:02:55]} 8. Qc2 {[%clk 0:02:47]}  Bf5 {[%clk 0:02:53]} 9. e4 {[%clk 0:02:45]}  Bg4 {[%clk 0:02:53]} 10. d5 {[%clk 0:02:41]}  Bxf3 {[%clk 0:02:53]} 11. gxf3 {[%clk 0:02:40]}  Nd4 {[%clk 0:02:48]} 12. Qd3 {[%clk 0:02:38]}  c5 {[%clk 0:02:48]} 13. dxc6 {[%clk 0:02:21]}  bxc6 {[%clk 0:02:41]} 14. O-O {[%clk 0:02:17]}  e5 {[%clk 0:02:40]} 15. f4 {[%clk 0:02:15]}  Nh5 {[%clk 0:02:36]} 16. fxe5 {[%clk 0:02:08]}  Bxe5 {[%clk 0:02:34]} 17. f4 {[%clk 0:02:09]}  Bg7 {[%clk 0:02:30]} 18. e5 {[%clk 0:02:05]}  Nf5 {[%clk 0:02:24]} 19. Qxd8 {[%clk 0:01:55]}  Raxd8 {[%clk 0:02:24]} 20. Ne4 {[%clk 0:01:54]}  Rd4 {[%clk 0:02:21]} 21. Nd2 {[%clk 0:01:45]}  Ne3 {[%clk 0:02:17]} 22. Bb3 {[%clk 0:01:27]}  Nxf1 {[%clk 0:02:16]} 23. Nxf1 {[%clk 0:01:27]}  Nxf4 {[%clk 0:02:15]} 24. Be3 {[%clk 0:01:27]}  Re4 {[%clk 0:02:10]} 25. Bc2 {[%clk 0:01:21]}  Rxe3 {[%clk 0:01:58]} 26. Nxe3 {[%clk 0:01:20]}  Bxe5 {[%clk 0:01:58]} 27. Rd1 {[%clk 0:01:11]}  Bxb2 {[%clk 0:01:58]} 28. Rd7 {[%clk 0:01:11]}  c5 {[%clk 0:01:53]} 29. Bb3 {[%clk 0:01:11]}  Bd4 {[%clk 0:01:52]} 30. Kf2 {[%clk 0:01:07]}  Nd3+ {[%clk 0:01:44]} 31. Kg2 {[%clk 0:00:55]}  Ne5 {[%clk 0:01:41]} 32. Re7 {[%clk 0:00:52]}  Nc6 {[%clk 0:01:35]} 33. Rc7 {[%clk 0:00:49]}  Na5 {[%clk 0:01:30]} 34. Nc2 {[%clk 0:00:45]}  Nxb3 {[%clk 0:01:30]} 35. axb3 {[%clk 0:00:45]}  Rb8 {[%clk 0:01:25]} 36. Rxa7 {[%clk 0:00:38]}  Rxb3 {[%clk 0:01:23]} 37. Nxd4 {[%clk 0:00:38]}  cxd4 {[%clk 0:01:24]} 38. Rd7 {[%clk 0:00:37]}  Rd3 {[%clk 0:01:22]} 39. Kf2 {[%clk 0:00:35]}  Rd2+ {[%clk 0:01:20]} 40. Kg3 {[%clk 0:00:35]}  Kg7 {[%clk 0:01:20]} 0-1


[Site "https://www.chess.com"]